[Event "Titled Tuesday Blitz July 25 Late 2023"]
[White "Moore, Nicholas"]
[Black "Hansen, Eric"]
[WhiteFideId "4303709"]
[BlackFideId "2606771"]
[WhiteElo "2440"]
[BlackElo "2838"]
[Result "0-1"]
[Round "1"]
[TimeControl "180+2"]
[Date "2023.07.25"]
[WhiteClock "0:00:17"]
[BlackClock "0:02:15"]
[Board "51"]

1. c4 {[%clk 0:01:58]}  c6 {[%clk 0:02:58]} 2. g3 {[%clk 0:01:57]}  Nf6 {[%clk 0:02:57]} 3. Nf3 {[%clk 0:01:58]}  d5 {[%clk 0:02:58]} 4. Bg2 {[%clk 0:01:58]}  e6 {[%clk 0:02:51]} 5. b3 {[%clk 0:01:56]}  Bd6 {[%clk 0:02:51]} 6. Bb2 {[%clk 0:01:55]}  Nbd7 {[%clk 0:02:51]} 7. O-O {[%clk 0:01:49]}  e5 {[%clk 0:02:49]} 8. cxd5 {[%clk 0:01:46]}  cxd5 {[%clk 0:02:49]} 9. Nc3 {[%clk 0:01:35]}  a6 {[%clk 0:02:47]} 10. d3 {[%clk 0:01:34]}  O-O {[%clk 0:02:47]} 11. e4 {[%clk 0:01:32]}  d4 {[%clk 0:02:45]} 12. Nb1 {[%clk 0:01:29]}  b5 {[%clk 0:02:41]} 13. Nbd2 {[%clk 0:01:29]}  Nc5 {[%clk 0:02:39]} 14. Qe2 {[%clk 0:01:28]}  a5 {[%clk 0:02:39]} 15. Nh4 {[%clk 0:00:58]}  a4 {[%clk 0:02:36]} 16. b4 {[%clk 0:00:59]}  a3 {[%clk 0:02:22]} 17. Bxd4 {[%clk 0:00:52]}  Na4 {[%clk 0:02:19]} 18. Be3 {[%clk 0:00:45]}  Nc3 {[%clk 0:02:15]} 19. Qf3 {[%clk 0:00:17]}  Bg4 {[%clk 0:02:15]} 0-1


[Site "https://www.chess.com"]

[Event "Titled Tuesday Blitz July 25 Late 2023"]
[White "Ashraf, Artin"]
[Black "Ladan, Nicholas"]
[WhiteFideId "22514805"]
[BlackFideId "30918855"]
[WhiteElo "2827"]
[BlackElo "2440"]
[Result "1-0"]
[Round "1"]
[TimeControl "180+2"]
[Date "2023.07.25"]
[WhiteClock "0:00:04"]
[BlackClock "0:00:00"]
[Board "52"]

1. e4 {[%clk 0:02:55]}  e5 {[%clk 0:02:59]} 2. Nf3 {[%clk 0:02:55]}  Nc6 {[%clk 0:03:00]} 3. Bb5 {[%clk 0:02:56]}  a6 {[%clk 0:02:59]} 4. Ba4 {[%clk 0:02:55]}  g6 {[%clk 0:02:59]} 5. c3 {[%clk 0:02:52]}  d6 {[%clk 0:02:58]} 6. d4 {[%clk 0:02:52]}  exd4 {[%clk 0:02:58]} 7. cxd4 {[%clk 0:02:52]}  b5 {[%clk 0:02:58]} 8. Bc2 {[%clk 0:02:48]}  Bg7 {[%clk 0:02:57]} 9. O-O {[%clk 0:02:45]}  Bg4 {[%clk 0:02:50]} 10. d5 {[%clk 0:02:43]}  Nd4 {[%clk 0:02:45]} 11. Nbd2 {[%clk 0:02:41]}  Qf6 {[%clk 0:02:29]} 12. h3 {[%clk 0:02:37]}  Bxf3 {[%clk 0:02:15]} 13. Nxf3 {[%clk 0:02:38]}  Nxf3+ {[%clk 0:02:14]} 14. Qxf3 {[%clk 0:02:36]}  Qxf3 {[%clk 0:02:14]} 15. gxf3 {[%clk 0:02:37]}  Ne7 {[%clk 0:02:05]} 16. Bd3 {[%clk 0:02:32]}  c5 {[%clk 0:02:01]} 17. dxc6 {[%clk 0:02:29]}  Nxc6 {[%clk 0:02:01]} 18. a4 {[%clk 0:02:29]}  Nb4 {[%clk 0:01:51]} 19. Be2 {[%clk 0:02:24]}  Nc2 {[%clk 0:01:50]} 20. Ra2 {[%clk 0:02:21]}  Nd4 {[%clk 0:01:48]} 21. Bd1 {[%clk 0:02:19]}  Kd7 {[%clk 0:01:42]} 22. Be3 {[%clk 0:02:13]}  Rhc8 {[%clk 0:01:31]} 23. b3 {[%clk 0:01:44]}  Ne6 {[%clk 0:01:01]} 24. Be2 {[%clk 0:01:39]}  b4 {[%clk 0:00:59]} 25. Rd2 {[%clk 0:01:34]}  Bc3 {[%clk 0:00:51]} 26. Rdd1 {[%clk 0:01:32]}  Nc5 {[%clk 0:00:46]} 27. Bc4 {[%clk 0:01:31]}  Ke7 {[%clk 0:00:41]} 28. Rd5 {[%clk 0:01:19]}  Nxa4 {[%clk 0:00:38]} 29. Bf4 {[%clk 0:01:08]}  Rc6 {[%clk 0:00:27]} 30. Rfd1 {[%clk 0:00:31]}  Nb2 {[%clk 0:00:22]} 31. Rxd6 {[%clk 0:00:28]}  Rxd6 {[%clk 0:00:16]} 32. Bxd6+ {[%clk 0:00:29]}  Ke8 {[%clk 0:00:16]} 33. Bd5 {[%clk 0:00:29]}  Nxd1 {[%clk 0:00:10]} 34. Bxa8 {[%clk 0:00:28]}  Nb2 {[%clk 0:00:06]} 35. Bc6+ {[%clk 0:00:23]}  Kd8 {[%clk 0:00:05]} 36. f4 {[%clk 0:00:24]}  Nd3 {[%clk 0:00:05]} 37. Kg2 {[%clk 0:00:23]}  Nc1 {[%clk 0:00:04]} 38. Bd5 {[%clk 0:00:23]}  a5 {[%clk 0:00:04]} 39. e5 {[%clk 0:00:16]}  a4 {[%clk 0:00:04]} 40. bxa4 {[%clk 0:00:16]}  b3 {[%clk 0:00:04]} 41. Be4 {[%clk 0:00:14]}  b2 {[%clk 0:00:02]} 42. Ba3 {[%clk 0:00:11]}  Nb3 {[%clk 0:00:02]} 43. Bxb2 {[%clk 0:00:11]}  Bxb2 {[%clk 0:00:02]} 44. Bd5 {[%clk 0:00:12]}  Na5 {[%clk 0:00:02]} 45. Bxf7 {[%clk 0:00:11]}  Ke7 {[%clk 0:00:02]} 46. Bg8 {[%clk 0:00:11]}  h6 {[%clk 0:00:03]} 47. h4 {[%clk 0:00:11]}  g5 {[%clk 0:00:03]} 48. hxg5 {[%clk 0:00:08]}  hxg5 {[%clk 0:00:04]} 49. fxg5 {[%clk 0:00:08]}  Bxe5 {[%clk 0:00:04]} 50. Kf3 {[%clk 0:00:09]}  Kf8 {[%clk 0:00:04]} 51. Bd5 {[%clk 0:00:09]}  Kg7 {[%clk 0:00:04]} 52. Kg4 {[%clk 0:00:09]}  Bd4 {[%clk 0:00:04]} 53. f4 {[%clk 0:00:09]}  Bc3 {[%clk 0:00:03]} 54. Kf5 {[%clk 0:00:09]}  Bd2 {[%clk 0:00:02]} 55. Kg4 {[%clk 0:00:09]}  Kg6 {[%clk 0:00:02]} 56. f5+ {[%clk 0:00:08]}  Kg7 {[%clk 0:00:03]} 57. f6+ {[%clk 0:00:07]}  Kf8 {[%clk 0:00:03]} 58. g6 {[%clk 0:00:04]}  Bh6 {[%clk 0:00:02]} 59. Kf5 {[%clk 0:00:05]}  Ke8 {[%clk 0:00:00]} 60. g7 {[%clk 0:00:04]} 1-0


[Site "https://www.chess.com"]

[Event "Titled Tuesday Blitz July 25 Late 2023"]
[White "SergioMoralesG"]
[Black "Donchenko, Alexander"]
[BlackFideId "24603295"]
[WhiteElo "2440"]
[BlackElo "2820"]
[Result "0-1"]
[Round "1"]
[TimeControl "180+2"]
[Date "2023.07.25"]
[WhiteClock "0:00:00"]
[BlackClock "0:01:10"]
[Board "53"]

1. d4 {[%clk 0:02:52]}  Nf6 {[%clk 0:02:54]} 2. c4 {[%clk 0:02:51]}  e6 {[%clk 0:02:54]} 3. Nf3 {[%clk 0:02:49]}  b6 {[%clk 0:02:54]} 4. g3 {[%clk 0:02:48]}  Ba6 {[%clk 0:02:52]} 5. Qc2 {[%clk 0:02:47]}  c5 {[%clk 0:02:51]} 6. Bg2 {[%clk 0:02:45]}  Bb7 {[%clk 0:02:48]} 7. dxc5 {[%clk 0:02:44]}  Bxc5 {[%clk 0:02:47]} 8. O-O {[%clk 0:02:44]}  O-O {[%clk 0:02:45]} 9. Nc3 {[%clk 0:02:44]}  Nc6 {[%clk 0:02:45]} 10. a3 {[%clk 0:02:43]}  Qe7 {[%clk 0:02:41]} 11. b4 {[%clk 0:02:34]}  Bd6 {[%clk 0:02:41]} 12. Nb5 {[%clk 0:02:29]}  Bb8 {[%clk 0:02:38]} 13. Bb2 {[%clk 0:02:26]}  Rc8 {[%clk 0:02:34]} 14. Ng5 {[%clk 0:02:19]}  h6 {[%clk 0:02:28]} 15. Bxf6 {[%clk 0:02:13]}  Qxf6 {[%clk 0:02:29]} 16. Qh7+ {[%clk 0:02:12]}  Kf8 {[%clk 0:02:29]} 17. Ne4 {[%clk 0:02:00]}  Qe5 {[%clk 0:02:09]} 18. f4 {[%clk 0:01:52]}  Qb2 {[%clk 0:01:52]} 19. Rab1 {[%clk 0:01:18]}  Qxe2 {[%clk 0:01:50]} 20. Qh8+ {[%clk 0:01:02]}  Ke7 {[%clk 0:01:50]} 21. Qxg7 {[%clk 0:01:02]}  Qxc4 {[%clk 0:01:42]} 22. Qf6+ {[%clk 0:00:56]}  Kf8 {[%clk 0:01:42]} 23. Qh8+ {[%clk 0:00:36]}  Ke7 {[%clk 0:01:42]} 24. Qf6+ {[%clk 0:00:36]}  Kf8 {[%clk 0:01:43]} 25. Ned6 {[%clk 0:00:30]}  Bxd6 {[%clk 0:01:40]} 26. Nxd6 {[%clk 0:00:30]}  Qd4+ {[%clk 0:01:33]} 27. Qxd4 {[%clk 0:00:30]}  Nxd4 {[%clk 0:01:34]} 28. Bxb7 {[%clk 0:00:25]}  Rcb8 {[%clk 0:01:30]} 29. Bxa8 {[%clk 0:00:25]}  Rxa8 {[%clk 0:01:31]} 30. Rfd1 {[%clk 0:00:21]}  Ne2+ {[%clk 0:01:30]} 31. Kf2 {[%clk 0:00:19]}  Nc3 {[%clk 0:01:31]} 32. Rbc1 {[%clk 0:00:11]}  Nxd1+ {[%clk 0:01:32]} 33. Rxd1 {[%clk 0:00:12]}  Ke7 {[%clk 0:01:32]} 34. Ke3 {[%clk 0:00:11]}  h5 {[%clk 0:01:31]} 35. Ne4 {[%clk 0:00:10]}  d5 {[%clk 0:01:29]} 36. Nc3 {[%clk 0:00:09]}  h4 {[%clk 0:01:28]} 37. Kd4 {[%clk 0:00:07]}  hxg3 {[%clk 0:01:27]} 38. hxg3 {[%clk 0:00:08]}  Rg8 {[%clk 0:01:28]} 39. Rd3 {[%clk 0:00:08]}  Rc8 {[%clk 0:01:27]} 40. Re3 {[%clk 0:00:06]}  Kd7 {[%clk 0:01:19]} 41. Re1 {[%clk 0:00:05]}  Rg8 {[%clk 0:01:15]} 42. Ne2 {[%clk 0:00:05]}  Rc8 {[%clk 0:01:14]} 43. Rc1 {[%clk 0:00:05]}  Rh8 {[%clk 0:01:15]} 44. g4 {[%clk 0:00:04]}  Rh3 {[%clk 0:01:14]} 45. Rc3 {[%clk 0:00:03]}  Rh2 {[%clk 0:01:14]} 46. Re3 {[%clk 0:00:03]}  Rg2 {[%clk 0:01:12]} 47. g5 {[%clk 0:00:03]}  Rf2 {[%clk 0:01:13]} 48. Ng3 {[%clk 0:00:03]}  Rxf4+ {[%clk 0:01:13]} 49. Kd3 {[%clk 0:00:03]}  Rg4 {[%clk 0:01:13]} 50. Ne2 {[%clk 0:00:02]}  Rxg5 {[%clk 0:01:13]} 51. Rf3 {[%clk 0:00:03]}  f5 {[%clk 0:01:12]} 52. Nd4 {[%clk 0:00:00]}  e5 {[%clk 0:01:10]} 0-1


[Site "https://www.chess.com"]

[Event "Titled Tuesday Blitz July 25 Late 2023"]
[White "Balla, Tamas-Kristof"]
[Black "Grigorov, Grigor"]
[WhiteFideId "1208497"]
[BlackFideId "2907313"]
[WhiteElo "2437"]
[BlackElo "2818"]
[Result "1-0"]
[Round "1"]
[TimeControl "180+2"]
[Date "2023.07.25"]
[WhiteClock "0:00:09"]
[BlackClock "0:00:00"]
[Board "55"]

1. e4 {[%clk 0:02:59]}  c6 {[%clk 0:02:59]} 2. d4 {[%clk 0:02:59]}  d5 {[%clk 0:03:00]} 3. exd5 {[%clk 0:02:59]}  cxd5 {[%clk 0:03:00]} 4. c4 {[%clk 0:03:00]}  Nf6 {[%clk 0:02:59]} 5. Nc3 {[%clk 0:03:00]}  Nc6 {[%clk 0:02:59]} 6. Bg5 {[%clk 0:02:59]}  dxc4 {[%clk 0:02:54]} 7. d5 {[%clk 0:02:59]}  Ne5 {[%clk 0:02:53]} 8. Qd4 {[%clk 0:02:59]}  h6 {[%clk 0:02:52]} 9. Bf4 {[%clk 0:02:58]}  Ng6 {[%clk 0:02:51]} 10. Bg3 {[%clk 0:02:57]}  e5 {[%clk 0:02:44]} 11. Qxc4 {[%clk 0:02:48]}  Bd6 {[%clk 0:02:38]} 12. Bd3 {[%clk 0:02:42]}  Nf4 {[%clk 0:02:27]} 13. Bxf4 {[%clk 0:02:33]}  exf4 {[%clk 0:02:28]} 14. Nf3 {[%clk 0:02:25]}  O-O {[%clk 0:02:28]} 15. O-O {[%clk 0:02:23]}  Bg4 {[%clk 0:02:21]} 16. Nd4 {[%clk 0:02:13]}  a6 {[%clk 0:02:20]} 17. h3 {[%clk 0:02:10]}  Bd7 {[%clk 0:02:15]} 18. Rad1 {[%clk 0:02:03]}  g6 {[%clk 0:02:10]} 19. Qb3 {[%clk 0:01:38]}  Qb8 {[%clk 0:01:58]} 20. Rfe1 {[%clk 0:01:27]}  Qa7 {[%clk 0:01:55]} 21. Bb1 {[%clk 0:01:17]}  Rfe8 {[%clk 0:01:51]} 22. Rxe8+ {[%clk 0:01:00]}  Rxe8 {[%clk 0:01:50]} 23. Qc2 {[%clk 0:00:27]}  Bc5 {[%clk 0:01:26]} 24. Nf3 {[%clk 0:00:26]}  Bd6 {[%clk 0:00:59]} 25. a3 {[%clk 0:00:26]}  Kg7 {[%clk 0:00:59]} 26. b4 {[%clk 0:00:25]}  Rc8 {[%clk 0:00:56]} 27. Qd3 {[%clk 0:00:25]}  Re8 {[%clk 0:00:53]} 28. Nd4 {[%clk 0:00:23]}  Qb8 {[%clk 0:00:43]} 29. Kh1 {[%clk 0:00:22]}  Qc7 {[%clk 0:00:27]} 30. Bc2 {[%clk 0:00:20]}  Rc8 {[%clk 0:00:26]} 31. Nce2 {[%clk 0:00:19]}  Be5 {[%clk 0:00:23]} 32. Bb3 {[%clk 0:00:19]}  Qd6 {[%clk 0:00:20]} 33. Nf3 {[%clk 0:00:19]}  Bf5 {[%clk 0:00:19]} 34. Qd2 {[%clk 0:00:18]}  Ne4 {[%clk 0:00:17]} 35. Qe1 {[%clk 0:00:16]}  Bf6 {[%clk 0:00:17]} 36. Ned4 {[%clk 0:00:09]}  Re8 {[%clk 0:00:08]} 37. Nxf5+ {[%clk 0:00:10]}  gxf5 {[%clk 0:00:00]} 38. Qf1 {[%clk 0:00:09]} 1-0


[Site "https://www.chess.com"]

[Event "Titled Tuesday Blitz July 25 Late 2023"]
[White "Hamidi, Amir Mohammad"]
[Black "Omariev, Maksim"]
[WhiteFideId "12563285"]
[BlackFideId "4193423"]
[WhiteElo "2810"]
[BlackElo "2435"]
[Result "0-1"]
[Round "1"]
[TimeControl "180+2"]
[Date "2023.07.25"]
[WhiteClock "0:01:31"]
[BlackClock "0:01:45"]
[Board "56"]

1. e4 {[%clk 0:02:58]}  c5 {[%clk 0:03:00]} 2. Nc3 {[%clk 0:02:58]}  d6 {[%clk 0:03:00]} 3. d4 {[%clk 0:02:57]}  cxd4 {[%clk 0:03:01]} 4. Qxd4 {[%clk 0:02:58]}  a6 {[%clk 0:03:01]} 5. b3 {[%clk 0:02:56]}  Nc6 {[%clk 0:03:02]} 6. Qd2 {[%clk 0:02:56]}  Nf6 {[%clk 0:03:01]} 7. Bb2 {[%clk 0:02:56]}  g6 {[%clk 0:03:01]} 8. O-O-O {[%clk 0:02:56]}  Bg7 {[%clk 0:03:01]} 9. f3 {[%clk 0:02:55]}  b5 {[%clk 0:03:01]} 10. Kb1 {[%clk 0:02:54]}  O-O {[%clk 0:02:59]} 11. h4 {[%clk 0:02:53]}  b4 {[%clk 0:02:50]} 12. Nd5 {[%clk 0:02:51]}  Nxd5 {[%clk 0:02:46]} 13. exd5 {[%clk 0:02:52]}  Ne5 {[%clk 0:02:40]} 14. h5 {[%clk 0:02:50]}  a5 {[%clk 0:02:39]} 15. Be2 {[%clk 0:02:44]}  a4 {[%clk 0:02:38]} 16. f4 {[%clk 0:02:42]}  axb3 {[%clk 0:02:26]} 17. axb3 {[%clk 0:02:39]}  Qa5 {[%clk 0:02:08]} 18. h6 {[%clk 0:01:40]}  Qa2+ {[%clk 0:01:55]} 19. Kc1 {[%clk 0:01:40]}  Qxb2+ {[%clk 0:01:48]} 20. Kxb2 {[%clk 0:01:35]}  Nd3+ {[%clk 0:01:44]} 21. Kb1 {[%clk 0:01:31]}  Ra1# {[%clk 0:01:45]} 0-1


[Site "https://www.chess.com"]

[Event "Titled Tuesday Blitz July 25 Late 2023"]
[White "Khanin, Semen"]
[Black "Baches Garcia, Guillermo"]
[WhiteFideId "4111990"]
[BlackFideId "2209764"]
[WhiteElo "2804"]
[BlackElo "2432"]
[Result "1-0"]
[Round "1"]
[TimeControl "180+2"]
[Date "2023.07.25"]
[WhiteClock "0:00:08"]
[BlackClock "0:00:00"]
[Board "58"]

1. e4 {[%clk 0:03:00]}  c5 {[%clk 0:03:00]} 2. Nf3 {[%clk 0:03:00]}  d6 {[%clk 0:03:00]} 3. d4 {[%clk 0:03:00]}  cxd4 {[%clk 0:03:01]} 4. Nxd4 {[%clk 0:03:00]}  Nf6 {[%clk 0:03:02]} 5. Nc3 {[%clk 0:03:01]}  Nc6 {[%clk 0:03:02]} 6. Bg5 {[%clk 0:03:00]}  e6 {[%clk 0:03:03]} 7. Qd2 {[%clk 0:03:01]}  h6 {[%clk 0:03:03]} 8. Bxf6 {[%clk 0:02:54]}  gxf6 {[%clk 0:03:04]} 9. O-O-O {[%clk 0:02:52]}  a6 {[%clk 0:03:04]} 10. f4 {[%clk 0:02:47]}  Bd7 {[%clk 0:03:04]} 11. Kb1 {[%clk 0:02:42]}  Qb6 {[%clk 0:03:03]} 12. Nxc6 {[%clk 0:02:37]}  Qxc6 {[%clk 0:03:02]} 13. f5 {[%clk 0:02:36]}  O-O-O {[%clk 0:02:55]} 14. g3 {[%clk 0:02:26]}  Be7 {[%clk 0:02:49]} 15. Bh3 {[%clk 0:02:24]}  Kb8 {[%clk 0:02:47]} 16. Rhf1 {[%clk 0:02:22]}  Rc8 {[%clk 0:02:39]} 17. Bg2 {[%clk 0:01:58]}  Qc5 {[%clk 0:02:34]} 18. Ne2 {[%clk 0:01:58]}  Bb5 {[%clk 0:02:21]} 19. Bh3 {[%clk 0:01:55]}  Bxe2 {[%clk 0:02:14]} 20. Qxe2 {[%clk 0:01:55]}  Qe5 {[%clk 0:02:11]} 21. fxe6 {[%clk 0:01:49]}  fxe6 {[%clk 0:02:11]} 22. Qg4 {[%clk 0:01:47]}  Rc4 {[%clk 0:02:01]} 23. Qxe6 {[%clk 0:01:44]}  Rxe4 {[%clk 0:01:46]} 24. Qb3 {[%clk 0:01:42]}  Qb5 {[%clk 0:01:34]} 25. Qxb5 {[%clk 0:01:41]}  axb5 {[%clk 0:01:35]} 26. Rfe1 {[%clk 0:01:41]}  Re5 {[%clk 0:01:32]} 27. Bf1 {[%clk 0:01:37]}  h5 {[%clk 0:01:24]} 28. Bxb5 {[%clk 0:01:25]}  h4 {[%clk 0:01:21]} 29. g4 {[%clk 0:01:25]}  h3 {[%clk 0:01:14]} 30. Bd3 {[%clk 0:01:19]}  d5 {[%clk 0:00:47]} 31. Rf1 {[%clk 0:01:08]}  Rg8 {[%clk 0:00:41]} 32. Rf3 {[%clk 0:01:03]}  Rxg4 {[%clk 0:00:39]} 33. Rxh3 {[%clk 0:01:03]}  f5 {[%clk 0:00:33]} 34. a3 {[%clk 0:00:56]}  f4 {[%clk 0:00:32]} 35. Rf1 {[%clk 0:00:56]}  Re3 {[%clk 0:00:28]} 36. Rh8+ {[%clk 0:00:23]}  Kc7 {[%clk 0:00:28]} 37. h3 {[%clk 0:00:23]}  Rh4 {[%clk 0:00:17]} 38. Rxh4 {[%clk 0:00:22]}  Bxh4 {[%clk 0:00:17]} 39. Rxf4 {[%clk 0:00:23]}  Rxh3 {[%clk 0:00:18]} 40. Rf7+ {[%clk 0:00:20]}  Kb6 {[%clk 0:00:16]} 41. Ka2 {[%clk 0:00:19]}  Rh2 {[%clk 0:00:15]} 42. Rf5 {[%clk 0:00:16]}  d4 {[%clk 0:00:14]} 43. Rd5 {[%clk 0:00:14]}  Bf2 {[%clk 0:00:14]} 44. a4 {[%clk 0:00:14]}  Rg2 {[%clk 0:00:14]} 45. Rb5+ {[%clk 0:00:12]}  Ka7 {[%clk 0:00:12]} 46. Rxb7+ {[%clk 0:00:08]}  Kxb7 {[%clk 0:00:13]} 47. Be4+ {[%clk 0:00:09]}  Kb6 {[%clk 0:00:13]} 48. Bxg2 {[%clk 0:00:10]}  Ka5 {[%clk 0:00:13]} 49. Ka3 {[%clk 0:00:09]}  Be1 {[%clk 0:00:13]} 50. Kb3 {[%clk 0:00:09]}  Bd2 {[%clk 0:00:13]} 51. Bc6 {[%clk 0:00:09]}  Be1 {[%clk 0:00:13]} 52. Kc4 {[%clk 0:00:09]}  Bf2 {[%clk 0:00:11]} 53. b4+ {[%clk 0:00:09]}  Kb6 {[%clk 0:00:12]} 54. Be4 {[%clk 0:00:10]}  Ka7 {[%clk 0:00:12]} 55. Kb5 {[%clk 0:00:09]}  Be1 {[%clk 0:00:11]} 56. a5 {[%clk 0:00:09]}  Bc3 {[%clk 0:00:11]} 57. Ka4 {[%clk 0:00:09]}  d3 {[%clk 0:00:11]} 58. Bxd3 {[%clk 0:00:08]}  Bxb4 {[%clk 0:00:00]} 59. Kxb4 {[%clk 0:00:08]} 1-0


[Site "https://www.chess.com"]

[Event "Titled Tuesday Blitz July 25 Late 2023"]
[White "Pasti, Aron"]
[Black "Leitao, Rafael"]
[WhiteFideId "785857"]
[BlackFideId "2101246"]
[WhiteElo "2430"]
[BlackElo "2793"]
[Result "0-1"]
[Round "1"]
[TimeControl "180+2"]
[Date "2023.07.25"]
[WhiteClock "0:00:37"]
[BlackClock "0:00:56"]
[Board "59"]

1. e4 {[%clk 0:03:00]}  e5 {[%clk 0:02:59]} 2. Nf3 {[%clk 0:02:58]}  Nc6 {[%clk 0:02:59]} 3. Bc4 {[%clk 0:02:57]}  Nf6 {[%clk 0:02:58]} 4. Ng5 {[%clk 0:02:57]}  d5 {[%clk 0:02:58]} 5. exd5 {[%clk 0:02:58]}  Na5 {[%clk 0:02:59]} 6. Bb5+ {[%clk 0:02:55]}  c6 {[%clk 0:02:59]} 7. dxc6 {[%clk 0:02:55]}  bxc6 {[%clk 0:02:59]} 8. Be2 {[%clk 0:02:52]}  h6 {[%clk 0:02:57]} 9. Nf3 {[%clk 0:02:51]}  e4 {[%clk 0:02:56]} 10. Ng1 {[%clk 0:02:49]}  Bd6 {[%clk 0:02:46]} 11. d3 {[%clk 0:02:48]}  O-O {[%clk 0:02:32]} 12. Nc3 {[%clk 0:02:47]}  exd3 {[%clk 0:02:25]} 13. Bxd3 {[%clk 0:02:48]}  c5 {[%clk 0:02:20]} 14. Nf3 {[%clk 0:02:44]}  Bb7 {[%clk 0:02:14]} 15. Be3 {[%clk 0:02:42]}  Re8 {[%clk 0:02:11]} 16. Qd2 {[%clk 0:02:41]}  Qb6 {[%clk 0:01:34]} 17. Bb5 {[%clk 0:02:22]}  Red8 {[%clk 0:01:30]} 18. Qe2 {[%clk 0:02:08]}  a6 {[%clk 0:01:28]} 19. O-O-O {[%clk 0:01:43]}  axb5 {[%clk 0:01:26]} 20. Nxb5 {[%clk 0:01:44]}  Ba6 {[%clk 0:01:21]} 21. a4 {[%clk 0:01:38]}  Nc6 {[%clk 0:01:14]} 22. Kb1 {[%clk 0:01:13]}  Qa5 {[%clk 0:01:02]} 23. c3 {[%clk 0:00:37]}  Qxa4 {[%clk 0:00:56]} 0-1


[Site "https://www.chess.com"]

[Event "Titled Tuesday Blitz July 25 Late 2023"]
[White "Stoyanov, Tsvetan"]
[Black "Pniaczek, Marek"]
[WhiteFideId "2917173"]
[BlackFideId "21800421"]
[WhiteElo "2789"]
[BlackElo "2429"]
[Result "0-1"]
[Round "1"]
[TimeControl "180+2"]
[Date "2023.07.25"]
[WhiteClock "0:00:00"]
[BlackClock "0:00:41"]
[Board "62"]

1. e4 {[%clk 0:03:00]}  e5 {[%clk 0:02:58]} 2. Nf3 {[%clk 0:03:00]}  Nc6 {[%clk 0:02:58]} 3. Nc3 {[%clk 0:03:00]}  Nf6 {[%clk 0:02:57]} 4. d4 {[%clk 0:03:01]}  exd4 {[%clk 0:02:55]} 5. Nxd4 {[%clk 0:03:02]}  Bb4 {[%clk 0:02:54]} 6. Nxc6 {[%clk 0:03:02]}  bxc6 {[%clk 0:02:55]} 7. Bd3 {[%clk 0:03:03]}  d5 {[%clk 0:02:54]} 8. exd5 {[%clk 0:03:03]}  O-O {[%clk 0:02:53]} 9. O-O {[%clk 0:03:04]}  cxd5 {[%clk 0:02:53]} 10. h3 {[%clk 0:03:03]}  c6 {[%clk 0:02:49]} 11. Qf3 {[%clk 0:03:04]}  Be6 {[%clk 0:02:49]} 12. Bg5 {[%clk 0:02:54]}  Be7 {[%clk 0:02:47]} 13. b3 {[%clk 0:02:48]}  h6 {[%clk 0:02:46]} 14. Bh4 {[%clk 0:02:46]}  Re8 {[%clk 0:02:45]} 15. Rad1 {[%clk 0:02:45]}  Qc7 {[%clk 0:02:35]} 16. Ne2 {[%clk 0:02:34]}  Nd7 {[%clk 0:02:34]} 17. Bxe7 {[%clk 0:02:26]}  Rxe7 {[%clk 0:02:34]} 18. Qg3 {[%clk 0:02:13]}  Ne5 {[%clk 0:02:20]} 19. Nd4 {[%clk 0:02:07]}  Nxd3 {[%clk 0:02:18]} 20. Rxd3 {[%clk 0:01:53]}  Qxg3 {[%clk 0:02:12]} 21. Rxg3 {[%clk 0:01:52]}  c5 {[%clk 0:02:12]} 22. Nc6 {[%clk 0:01:39]}  Rc7 {[%clk 0:02:12]} 23. Ne5 {[%clk 0:01:39]}  Re8 {[%clk 0:02:11]} 24. c3 {[%clk 0:01:24]}  Bxh3 {[%clk 0:02:02]} 25. Nxf7 {[%clk 0:01:19]}  Rxf7 {[%clk 0:01:56]} 26. Rxh3 {[%clk 0:01:14]}  Re2 {[%clk 0:01:56]} 27. Rd3 {[%clk 0:01:13]}  Rf5 {[%clk 0:01:52]} 28. a4 {[%clk 0:01:09]}  Rb2 {[%clk 0:01:49]} 29. c4 {[%clk 0:00:34]}  dxc4 {[%clk 0:01:48]} 30. bxc4 {[%clk 0:00:35]}  Rf4 {[%clk 0:01:48]} 31. Rd8+ {[%clk 0:00:29]}  Kh7 {[%clk 0:01:33]} 32. Rd7 {[%clk 0:00:30]}  a5 {[%clk 0:01:15]} 33. Ra7 {[%clk 0:00:28]}  Rxc4 {[%clk 0:01:14]} 34. Rxa5 {[%clk 0:00:28]}  Ra2 {[%clk 0:01:14]} 35. Ra7 {[%clk 0:00:24]}  Rcxa4 {[%clk 0:01:05]} 36. Rc7 {[%clk 0:00:23]}  Rc4 {[%clk 0:01:05]} 37. Rd1 {[%clk 0:00:16]}  Rcc2 {[%clk 0:01:04]} 38. Rdd7 {[%clk 0:00:15]}  Rxf2 {[%clk 0:01:01]} 39. Rxg7+ {[%clk 0:00:15]}  Kh8 {[%clk 0:01:01]} 40. Rg6 {[%clk 0:00:10]}  c4 {[%clk 0:00:40]} 41. Rxh6+ {[%clk 0:00:00]}  Kg8 {[%clk 0:00:41]} 0-1


[Site "https://www.chess.com"]

[Event "Titled Tuesday Blitz July 25 Late 2023"]
[White "Mickiewicz, Piotr"]
[Black "Hambleton, Aman"]
[WhiteFideId "1114891"]
[BlackFideId "2606577"]
[WhiteElo "2426"]
[BlackElo "2787"]
[Result "0-1"]
[Round "1"]
[TimeControl "180+2"]
[Date "2023.07.25"]
[WhiteClock "0:00:00"]
[BlackClock "0:00:01"]
[Board "63"]

1. e4 {[%clk 0:02:49]}  c5 {[%clk 0:02:59]} 2. Nf3 {[%clk 0:02:48]}  e6 {[%clk 0:02:59]} 3. d4 {[%clk 0:02:49]}  cxd4 {[%clk 0:02:59]} 4. Nxd4 {[%clk 0:02:49]}  Nc6 {[%clk 0:02:59]} 5. Nb5 {[%clk 0:02:43]}  d6 {[%clk 0:02:58]} 6. c4 {[%clk 0:02:43]}  Nf6 {[%clk 0:02:57]} 7. N1c3 {[%clk 0:02:41]}  a6 {[%clk 0:02:57]} 8. Na3 {[%clk 0:02:42]}  Qc7 {[%clk 0:02:56]} 9. Be2 {[%clk 0:02:39]}  b6 {[%clk 0:02:57]} 10. O-O {[%clk 0:02:39]}  Bb7 {[%clk 0:02:57]} 11. f3 {[%clk 0:02:39]}  Be7 {[%clk 0:02:56]} 12. Be3 {[%clk 0:02:39]}  O-O {[%clk 0:02:48]} 13. Rc1 {[%clk 0:02:38]}  Ne5 {[%clk 0:02:47]} 14. Qd2 {[%clk 0:02:36]}  Rac8 {[%clk 0:02:42]} 15. Rfd1 {[%clk 0:02:35]}  Rfd8 {[%clk 0:02:42]} 16. Bf1 {[%clk 0:02:31]}  Ned7 {[%clk 0:02:31]} 17. Nc2 {[%clk 0:02:23]}  Qb8 {[%clk 0:02:22]} 18. Nd4 {[%clk 0:02:18]}  h5 {[%clk 0:02:09]} 19. b3 {[%clk 0:02:14]}  h4 {[%clk 0:02:00]} 20. Qf2 {[%clk 0:02:14]}  Re8 {[%clk 0:01:46]} 21. Kh1 {[%clk 0:01:30]}  Ba8 {[%clk 0:01:29]} 22. Bg5 {[%clk 0:01:29]}  Ng4 {[%clk 0:00:52]} 23. Qxh4 {[%clk 0:01:10]}  Bxg5 {[%clk 0:00:52]} 24. Qxg5 {[%clk 0:01:09]}  Nf2+ {[%clk 0:00:52]} 25. Kg1 {[%clk 0:01:10]}  Nxd1 {[%clk 0:00:53]} 26. Rxd1 {[%clk 0:01:06]}  Qc7 {[%clk 0:00:52]} 27. Nde2 {[%clk 0:00:40]}  Nf6 {[%clk 0:00:44]} 28. Qg3 {[%clk 0:00:28]}  Red8 {[%clk 0:00:34]} 29. Qh4 {[%clk 0:00:16]}  b5 {[%clk 0:00:20]} 30. cxb5 {[%clk 0:00:14]}  axb5 {[%clk 0:00:21]} 31. b4 {[%clk 0:00:10]}  d5 {[%clk 0:00:12]} 32. Kh1 {[%clk 0:00:09]}  dxe4 {[%clk 0:00:12]} 33. Rxd8+ {[%clk 0:00:07]}  Qxd8 {[%clk 0:00:09]} 34. fxe4 {[%clk 0:00:08]}  Nxe4 {[%clk 0:00:09]} 35. Qe1 {[%clk 0:00:04]}  Nxc3 {[%clk 0:00:09]} 36. Nxc3 {[%clk 0:00:05]}  Bc6 {[%clk 0:00:03]} 37. Nxb5 {[%clk 0:00:04]}  Bxb5 {[%clk 0:00:04]} 38. Bxb5 {[%clk 0:00:04]}  Qd5 {[%clk 0:00:03]} 39. a4 {[%clk 0:00:05]}  Qd4 {[%clk 0:00:02]} 40. h3 {[%clk 0:00:05]}  Rc3 {[%clk 0:00:02]} 41. Qe2 {[%clk 0:00:03]}  Rc1+ {[%clk 0:00:02]} 42. Kh2 {[%clk 0:00:04]}  Qf4+ {[%clk 0:00:01]} 43. g3 {[%clk 0:00:03]}  Qd4 {[%clk 0:00:01]} 44. Qg2 {[%clk 0:00:02]}  g6 {[%clk 0:00:01]} 45. Bc6 {[%clk 0:00:00]}  Rb1 {[%clk 0:00:01]} 0-1


[Site "https://www.chess.com"]